[Event "Velká cena Novohradska - A"]
[Site "Nové Hrady, Czech Republic"]
[Date "2024.10.12"]
[Round "2.7"]
[White "Hejda, Ondřej"]
[Black "Polanský, Matěj"]
[Result "0-1"]
[TimeControl "2x20min+10s/tah"]
[WhiteFideId "23713623"]
[BlackFideId "23741872"]
[WhiteElo "1702"]
[BlackElo "1475"]

1. e4 {[%clk 00:20:18]} {[%emt 00:00:02]} e5 {[%clk 00:20:19]} 2. Nf3 {[%clk
00:20:24]} {[%emt 00:00:05]} Nc6 {[%clk 00:20:28]} {[%emt 00:00:01]} 3. Nc3
{[%clk 00:20:26]} {[%emt 00:00:08]} Bb4 {[%clk 00:20:20]} {[%emt 00:00:18]} 4.
Bc4 {[%clk 00:20:21]} {[%emt 00:00:15]} Nf6 {[%clk 00:20:12]} {[%emt 00:00:17]}
5. d3 {[%clk 00:20:09]} {[%emt 00:00:24]} d6 {[%clk 00:20:09]} {[%emt
00:00:13]} 6. a3 {[%clk 00:20:12]} {[%emt 00:00:07]} Ba5 {[%clk 00:20:15]}
{[%emt 00:00:03]} 7. b4 {[%clk 00:20:17]} {[%emt 00:00:05]} Bb6 {[%clk
00:20:24]} 8. Bg5 {[%clk 00:19:51]} {[%emt 00:00:36]} h6 {[%clk 00:20:25]}
{[%emt 00:00:10]} 9. Bh4 {[%clk 00:20:00]} {[%emt 00:00:02]} O-O {[%clk
00:20:33]} {[%emt 00:00:02]} 10. Nd5 {[%clk 00:20:02]} {[%emt 00:00:07]} Kh8
{[%clk 00:19:42]} {[%emt 00:01:01]} 11. Qd2 {[%clk 00:19:46]} {[%emt 00:00:26]}
Kh7 {[%clk 00:19:37]} {[%emt 00:00:16]} 12. Bxf6 {[%clk 00:18:45]} {[%emt
00:01:10]} gxf6 {[%clk 00:19:43]} {[%emt 00:00:04]} 13. Rg1 {[%clk 00:16:52]}
{[%emt 00:02:03]} Rg8 {[%clk 00:19:43]} {[%emt 00:00:09]} 14. h3 {[%clk
00:16:32]} {[%emt 00:00:31]} f5 {[%clk 00:18:27]} {[%emt 00:01:26]} 15. O-O-O
{[%clk 00:14:34]} {[%emt 00:02:08]} f4 {[%clk 00:17:53]} {[%emt 00:00:45]} 16.
g3 {[%clk 00:13:48]} {[%emt 00:00:55]} fxg3 {[%clk 00:17:56]} {[%emt 00:00:06]}
17. fxg3 {[%clk 00:13:37]} {[%emt 00:00:21]} Bxh3 {[%clk 00:17:49]} {[%emt
00:00:18]} 18. Rh1 {[%clk 00:13:34]} {[%emt 00:00:12]} Rxg3 {[%clk 00:17:12]}
{[%emt 00:00:48]} 19. Ne1 {[%clk 00:11:36]} {[%emt 00:02:04]} Qg5 {[%clk
00:16:39]} {[%emt 00:00:47]} 20. Qxg5 {[%clk 00:11:28]} {[%emt 00:00:18]} hxg5
{[%clk 00:16:47]} {[%emt 00:00:02]} 21. Rd2 {[%clk 00:09:02]} {[%emt 00:02:32]}
Kg6 {[%clk 00:16:32]} {[%emt 00:00:28]} 22. Rdh2 {[%clk 00:08:12]} {[%emt
00:01:00]} g4 {[%clk 00:16:03]} {[%emt 00:00:40]} 23. b5 {[%clk 00:07:53]}
{[%emt 00:00:30]} Nd4 {[%clk 00:15:49]} {[%emt 00:00:23]} 24. c3 {[%clk
00:07:21]} {[%emt 00:00:42]} Ne6 {[%clk 00:14:38]} {[%emt 00:01:22]} 25. Ne7+
{[%clk 00:07:15]} {[%emt 00:00:14]} Kg5 {[%clk 00:13:57]} {[%emt 00:00:52]} 26.
Nf5 {[%clk 00:07:12]} {[%emt 00:00:12]} Rg1 {[%clk 00:13:14]} {[%emt 00:00:54]}
27. Kd2 {[%clk 00:06:06]} {[%emt 00:01:13]} Rxh1 {[%clk 00:12:57]} {[%emt
00:00:29]} 28. Rxh1 {[%clk 00:06:11]} {[%emt 00:00:09]} Rg8 {[%clk 00:12:21]}
{[%emt 00:00:30]} 29. Nc2 {[%clk 00:04:52]} {[%emt 00:01:43]} Bg2 {[%clk
00:12:00]} {[%emt 00:00:31]} 30. Rh7 {[%clk 00:04:48]} {[%emt 00:00:14]} Kf4
{[%clk 00:10:54]} {[%emt 00:01:15]} 31. Rxf7 {[%clk 00:04:23]} {[%emt
00:00:35]} Ng5 {[%clk 00:08:55]} {[%emt 00:02:10]} 32. Nh6+ {[%clk 00:03:37]}
{[%emt 00:00:52]} Nxf7 {[%clk 00:08:59]} {[%emt 00:00:10]} 33. Nxg8 {[%clk
00:03:31]} {[%emt 00:00:16]} Ng5 {[%clk 00:08:58]} {[%emt 00:00:10]} 34. Nf6
{[%clk 00:03:03]} {[%emt 00:00:34]} g3 {[%clk 00:07:52]} {[%emt 00:01:20]} 35.
Ne1 {[%clk 00:02:37]} {[%emt 00:00:36]} Bf1 {[%clk 00:07:48]} {[%emt 00:00:13]}
36. Nh5+ {[%clk 00:02:23]} {[%emt 00:00:24]} Kg4 {[%clk 00:07:40]} {[%emt
00:00:16]} 37. Nf6+ {[%clk 00:02:30]} {[%emt 00:00:06]} Kh3 {[%clk 00:07:42]}
{[%emt 00:00:06]} 38. Nh5 {[%clk 00:01:20]} {[%emt 00:01:22]} g2 {[%clk
00:07:29]} {[%emt 00:00:23]} 39. Nxg2 {[%clk 00:00:57]} {[%emt 00:00:33]} Kxg2
{[%clk 00:07:31]} {[%emt 00:00:08]} 40. Bb3 {[%clk 00:00:47]} {[%emt 00:00:21]}
Nf3+ {[%clk 00:07:35]} {[%emt 00:00:05]} 41. Kc2 {[%clk 00:00:50]} {[%emt
00:00:07]} Kf2 {[%clk 00:07:37]} {[%emt 00:00:07]} 42. c4 {[%clk 00:00:52]}
{[%emt 00:00:09]} Nd4+ {[%clk 00:07:39]} {[%emt 00:00:07]} 43. Kc3 {[%clk
00:01:01]} {[%emt 00:00:03]} Nxb3 {[%clk 00:07:47]} {[%emt 00:00:02]} 44. Kxb3
{[%clk 00:01:10]} Bxd3 {[%clk 00:07:53]} {[%emt 00:00:04]} 45. Nf6 {[%clk
00:01:19]} {[%emt 00:00:02]} Ke3 {[%clk 00:07:54]} {[%emt 00:00:08]} 46. a4
{[%clk 00:01:26]} {[%emt 00:00:03]} Bxe4 {[%clk 00:07:42]} {[%emt 00:00:22]}
0-1

[Event "Velká cena Novohradska - A"]
[Site "Nové Hrady, Czech Republic"]
[Date "2024.10.12"]
[Round "3.1"]
[White "Garabik, Marek"]
[Black "Postl, František"]
[Result "1-0"]
[TimeControl "2x20min+10s/tah"]
[WhiteFideId "23717742"]
[BlackFideId "23709448"]
[WhiteElo "1925"]
[BlackElo "1514"]

1. e4 {[%clk 00:20:17]} {[%emt 00:00:03]} c5 {[%clk 00:20:19]} 2. Nc3 {[%clk
00:20:25]} d6 {[%clk 00:20:28]} {[%emt 00:00:02]} 3. f4 {[%clk 00:20:34]}
{[%emt 00:00:01]} Nf6 {[%clk 00:20:36]} {[%emt 00:00:03]} 4. Nf3 {[%clk
00:20:43]} Nc6 {[%clk 00:20:44]} {[%emt 00:00:02]} 5. Bb5 {[%clk 00:20:52]} Bg4
{[%clk 00:20:45]} {[%emt 00:00:10]} 6. Bxc6+ {[%clk 00:21:01]} bxc6 {[%emt
00:00:02]} 7. d3 Qb6 {[%clk 00:20:55]} {[%emt 00:00:09]} 8. b3 {[%clk
00:20:57]} {[%emt 00:00:24]} g6 {[%clk 00:20:51]} {[%emt 00:00:13]} 9. h3
{[%clk 00:21:00]} {[%emt 00:00:06]} Be6 {[%clk 00:20:52]} {[%emt 00:00:10]} 10.
Bb2 {[%clk 00:20:54]} {[%emt 00:00:16]} Bg7 {[%clk 00:21:00]} {[%emt 00:00:02]}
11. Na4 {[%clk 00:20:57]} {[%emt 00:00:07]} Qc7 {[%clk 00:20:58]} {[%emt
00:00:12]} 12. O-O {[%clk 00:21:03]} {[%emt 00:00:04]} Bh6 {[%clk 00:20:31]}
{[%emt 00:00:36]} 13. Qd2 {[%clk 00:20:39]} {[%emt 00:00:34]} Qd7 {[%clk
00:19:38]} {[%emt 00:01:04]} 14. Ng5 {[%clk 00:19:27]} {[%emt 00:01:22]} O-O
{[%clk 00:18:55]} {[%emt 00:00:53]} 15. Nxe6 {[%clk 00:19:14]} {[%emt
00:00:23]} fxe6 {[%clk 00:19:00]} {[%emt 00:00:05]} 16. Qe1 {[%clk 00:18:44]}
{[%emt 00:00:39]} Nh5 {[%clk 00:18:55]} {[%emt 00:00:16]} 17. Qc3 {[%clk
00:16:39]} {[%emt 00:02:15]} Bg7 {[%clk 00:17:42]} {[%emt 00:01:23]} 18. Qd2
{[%clk 00:16:26]} {[%emt 00:00:23]} e5 {[%clk 00:17:33]} {[%emt 00:00:19]} 19.
fxe5 {[%clk 00:16:30]} {[%emt 00:00:06]} Bxe5 {[%clk 00:16:29]} {[%emt
00:01:14]} 20. Nxc5 {[%clk 00:15:28]} {[%emt 00:01:11]} dxc5 {[%clk 00:12:42]}
{[%emt 00:03:59]} 21. Bxe5 {[%clk 00:15:35]} {[%emt 00:00:02]} Qe6 {[%clk
00:11:39]} {[%emt 00:01:13]} 22. Qc3 {[%clk 00:13:25]} {[%emt 00:02:21]} Rab8
{[%clk 00:09:19]} {[%emt 00:02:29]} 23. Bxb8 {[%clk 00:12:44]} {[%emt
00:00:51]} Rxb8 {[%clk 00:09:28]} 24. Qc4 {[%clk 00:12:53]} {[%emt 00:00:01]}
Ng3 {[%clk 00:09:31]} {[%emt 00:00:07]} 25. Qxe6+ {[%clk 00:13:01]} {[%emt
00:00:02]} 1-0

[Event "Velká cena Novohradska - A"]
[Site "Nové Hrady, Czech Republic"]
[Date "2024.10.12"]
[Round "3.2"]
[White "Šebesta, Marek"]
[Black "Rendl, Luboš"]
[Result "1-0"]
[TimeControl "2x20min+10s/tah"]
[WhiteFideId "23765119"]
[BlackFideId "23750197"]
[WhiteElo "1707"]
[BlackElo "1860"]

1. e4 {[%clk 00:20:19]} {[%emt 00:23:27]} c6 {[%clk 00:20:09]} {[%emt
00:00:11]} 2. d4 {[%clk 00:20:28]} {[%emt 00:00:02]} d5 {[%clk 00:20:18]} 3. e5
{[%clk 00:20:37]} c5 {[%clk 00:20:26]} {[%emt 00:00:02]} 4. c3 {[%clk
00:20:31]} {[%emt 00:00:16]} Nc6 {[%clk 00:20:23]} {[%emt 00:00:14]} 5. h3
{[%clk 00:19:58]} {[%emt 00:00:42]} Bf5 {[%clk 00:20:28]} {[%emt 00:00:05]} 6.
Nf3 {[%clk 00:19:57]} {[%emt 00:00:12]} e6 {[%clk 00:20:36]} {[%emt 00:00:02]}
7. Bd3 {[%clk 00:20:01]} {[%emt 00:00:06]} Bxd3 {[%clk 00:20:37]} {[%emt
00:00:09]} 8. Qxd3 {[%clk 00:20:09]} {[%emt 00:00:02]} f6 {[%clk 00:20:29]}
{[%emt 00:00:18]} 9. O-O {[%clk 00:19:48]} {[%emt 00:00:31]} fxe5 {[%clk
00:20:13]} {[%emt 00:00:25]} 10. Nxe5 {[%clk 00:19:57]} Nxe5 {[%clk 00:19:57]}
{[%emt 00:00:28]} 11. dxe5 {[%clk 00:20:05]} {[%emt 00:00:02]} Ne7 {[%clk
00:20:04]} {[%emt 00:00:03]} 12. c4 {[%clk 00:19:53]} {[%emt 00:00:22]} Nc6
{[%clk 00:19:26]} {[%emt 00:00:48]} 13. Bf4 {[%emt 00:00:35]} Be7 {[%clk
00:19:26]} {[%emt 00:00:04]} 14. Nc3 {[%clk 00:19:14]} {[%emt 00:00:30]} O-O
{[%clk 00:19:16]} {[%emt 00:00:20]} 15. Bg3 {[%clk 00:18:43]} {[%emt 00:00:40]}
d4 {[%clk 00:19:05]} {[%emt 00:00:21]} 16. Ne4 {[%clk 00:18:30]} {[%emt
00:00:24]} Qd7 {[%clk 00:18:53]} {[%emt 00:00:22]} 17. Rfe1 {[%clk 00:16:58]}
{[%emt 00:01:42]} Rad8 {[%clk 00:18:44]} {[%emt 00:00:19]} 18. Re2 {[%clk
00:15:39]} {[%emt 00:01:29]} Nb4 {[%clk 00:17:24]} {[%emt 00:01:29]} 19. Qd1
{[%clk 00:14:10]} {[%emt 00:01:39]} d3 {[%clk 00:16:34]} {[%emt 00:01:01]} 20.
Rd2 {[%clk 00:13:48]} {[%emt 00:00:31]} Qd4 {[%clk 00:15:52]} {[%emt 00:00:53]}
21. Qg4 {[%clk 00:12:05]} {[%emt 00:01:52]} Qxc4 {[%clk 00:13:57]} {[%emt
00:02:06]} 22. Nf6+ {[%emt 00:01:18]} Bxf6 {[%clk 00:13:25]} {[%emt 00:00:39]}
23. Qxc4 {[%clk 00:11:08]} Bg5 {[%clk 00:13:18]} {[%emt 00:00:18]} 24. Qxe6+
{[%clk 00:09:59]} {[%emt 00:01:19]} Kh8 {[%clk 00:13:27]} 25. Rad1 {[%clk
00:09:25]} {[%emt 00:00:44]} Bxd2 {[%clk 00:13:28]} {[%emt 00:00:10]} 26. Rxd2
{[%clk 00:09:34]} c4 {[%clk 00:13:16]} {[%emt 00:00:24]} 27. Qxc4 {[%clk
00:09:01]} {[%emt 00:00:42]} Nc2 {[%clk 00:13:09]} {[%emt 00:00:18]} 28. Rxd3
{[%clk 00:08:45]} {[%emt 00:00:26]} Rc8 {[%clk 00:13:03]} {[%emt 00:00:15]} 29.
Qg4 {[%clk 00:08:32]} {[%emt 00:00:22]} Ne1 {[%clk 00:13:10]} {[%emt 00:00:05]}
30. Rd1 {[%clk 00:08:21]} {[%emt 00:00:20]} 1-0

[Event "Velká cena Novohradska - A"]
[Site "Nové Hrady, Czech Republic"]
[Date "2024.10.12"]
[Round "3.3"]
[White "Polanský, Matěj"]
[Black "Gregor, Alexandr"]
[Result "0-1"]
[TimeControl "2x20min+10s/tah"]
[WhiteFideId "23741872"]
[BlackFideId "23735813"]
[WhiteElo "1475"]
[BlackElo "1813"]

1. e4 {[%clk 00:20:19]} c5 {[%clk 00:20:13]} {[%emt 00:00:08]} 2. Nc3 {[%clk
00:20:26]} {[%emt 00:00:04]} Nc6 {[%clk 00:20:19]} {[%emt 00:00:03]} 3. f4
{[%clk 00:20:33]} {[%emt 00:00:02]} e6 {[%clk 00:20:26]} {[%emt 00:00:03]} 4.
Nf3 {[%clk 00:20:40]} {[%emt 00:00:03]} d5 {[%clk 00:20:34]} {[%emt 00:00:02]}
5. e5 {[%clk 00:20:45]} {[%emt 00:00:06]} Be7 {[%clk 00:20:23]} {[%emt
00:00:22]} 6. Bb5 {[%clk 00:20:49]} {[%emt 00:00:05]} Bd7 {[%clk 00:20:26]}
{[%emt 00:00:07]} 7. O-O {[%clk 00:20:31]} {[%emt 00:00:27]} a6 {[%clk
00:20:35]} {[%emt 00:00:02]} 8. Bxc6 {[%clk 00:20:39]} {[%emt 00:00:02]} Bxc6
{[%clk 00:20:44]} {[%emt 00:00:01]} 9. d4 {[%clk 00:20:41]} {[%emt 00:00:08]}
cxd4 {[%clk 00:20:52]} {[%emt 00:00:01]} 10. Nxd4 {[%clk 00:20:32]} {[%emt
00:00:19]} Qc7 {[%clk 00:20:35]} {[%emt 00:00:27]} 11. Nxc6 {[%clk 00:20:11]}
{[%emt 00:00:32]} bxc6 {[%clk 00:20:31]} {[%emt 00:00:15]} 12. Be3 {[%clk
00:19:39]} {[%emt 00:00:41]} c5 {[%clk 00:20:35]} {[%emt 00:00:06]} 13. Bf2
{[%clk 00:19:42]} {[%emt 00:00:07]} c4 {[%clk 00:20:41]} {[%emt 00:00:04]} 14.
Qg4 {[%clk 00:19:20]} {[%emt 00:00:32]} g6 {[%clk 00:20:42]} {[%emt 00:00:09]}
15. Rad1 {[%clk 00:19:09]} {[%emt 00:00:22]} Bc5 {[%clk 00:20:47]} {[%emt
00:00:05]} 16. Bxc5 {[%clk 00:18:52]} {[%emt 00:00:26]} Qxc5+ {[%clk 00:20:55]}
{[%emt 00:00:02]} 17. Kh1 {[%clk 00:19:01]} Nh6 {[%clk 00:20:03]} {[%emt
00:01:03]} 18. Qg5 {[%clk 00:17:45]} {[%emt 00:01:22]} Nf5 {[%clk 00:20:10]}
{[%emt 00:00:06]} 19. Rfe1 {[%clk 00:17:20]} {[%emt 00:00:35]} Qe7 {[%clk
00:19:32]} {[%emt 00:00:49]} 20. Qxe7+ {[%clk 00:16:50]} {[%emt 00:00:40]} Kxe7
{[%clk 00:19:23]} {[%emt 00:00:19]} 21. g4 {[%clk 00:16:34]} {[%emt 00:00:25]}
Ng7 {[%clk 00:19:31]} {[%emt 00:00:02]} 22. Kg2 {[%clk 00:16:26]} {[%emt
00:00:19]} h5 {[%clk 00:19:21]} {[%emt 00:00:20]} 23. h3 {[%clk 00:15:59]}
{[%emt 00:00:36]} hxg4 {[%clk 00:19:21]} {[%emt 00:00:10]} 24. hxg4 {[%clk
00:15:58]} {[%emt 00:00:11]} Rh4 {[%clk 00:19:21]} {[%emt 00:00:11]} 25. Kg3
{[%clk 00:16:00]} {[%emt 00:00:03]} Rah8 {[%clk 00:19:27]} {[%emt 00:00:08]} 26.
Ne2 {[%clk 00:15:12]} {[%emt 00:00:57]} Rh3+ {[%clk 00:19:31]} {[%emt
00:00:08]} 27. Kf2 {[%clk 00:14:42]} {[%emt 00:00:40]} Rh2+ {[%clk 00:19:28]}
{[%emt 00:00:13]} 28. Kf1 {[%clk 00:14:13]} {[%emt 00:00:35]} R2h4 {[%clk
00:18:02]} {[%emt 00:01:40]} 29. g5 {[%clk 00:13:41]} {[%emt 00:00:42]} Nf5
{[%clk 00:16:33]} {[%emt 00:01:39]} 30. Kf2 {[%clk 00:13:06]} {[%emt 00:00:45]}
Rh2+ {[%clk 00:16:33]} {[%emt 00:00:10]} 31. Kf1 {[%clk 00:12:32]} {[%emt
00:00:43]} Ne3+ {[%clk 00:16:38]} {[%emt 00:00:06]} 32. Kg1 {[%clk 00:12:09]}
{[%emt 00:00:33]} Rg2# {[%clk 00:16:46]} 0-1

[Event "Velká cena Novohradska - A"]
[Site "Nové Hrady, Czech Republic"]
[Date "2024.10.12"]
[Round "3.4"]
[White "Hokr, Matyáš"]
[Black "Slonek, Richard"]
[Result "1-0"]
[TimeControl "2x20min+10s/tah"]
[WhiteFideId "23734663"]
[BlackFideId "23744553"]
[WhiteElo "1534"]
[BlackElo "1524"]

1. e4 {[%clk 00:20:14]} {[%emt 00:00:06]} e6 {[%clk 00:20:19]} {[%emt
00:00:02]} 2. d4 {[%clk 00:20:22]} {[%emt 00:00:02]} d5 {[%clk 00:20:27]}
{[%emt 00:00:02]} 3. exd5 {[%clk 00:20:29]} {[%emt 00:00:03]} exd5 {[%clk
00:20:35]} {[%emt 00:00:02]} 4. Bd3 {[%clk 00:20:37]} {[%emt 00:00:02]} Nc6
{[%clk 00:20:41]} {[%emt 00:00:04]} 5. Nf3 {[%clk 00:20:41]} {[%emt 00:00:06]}
Nf6 {[%clk 00:20:46]} {[%emt 00:00:04]} 6. O-O {[%clk 00:20:47]} {[%emt
00:00:04]} Bd6 {[%clk 00:20:54]} {[%emt 00:00:02]} 7. Re1+ {[%clk 00:20:54]}
{[%emt 00:00:04]} Be6 {[%clk 00:21:03]} {[%emt 00:00:01]} 8. Bf5 {[%clk
00:20:07]} {[%emt 00:00:57]} Qd7 {[%clk 00:20:53]} {[%emt 00:00:19]} 9. Ng5
{[%clk 00:20:05]} {[%emt 00:00:12]} O-O-O {[%clk 00:20:36]} {[%emt 00:00:27]}
10. Nxe6 {[%clk 00:20:11]} {[%emt 00:00:04]} Kb8 {[%clk 00:20:40]} {[%emt
00:00:06]} 11. Nxd8 {[%clk 00:20:11]} {[%emt 00:00:10]} Qxd8 {[%clk 00:20:34]}
{[%emt 00:00:16]} 12. Bg5 {[%clk 00:19:41]} {[%emt 00:00:40]} h6 {[%clk
00:20:33]} {[%emt 00:00:10]} 13. Bh4 {[%clk 00:19:50]} {[%emt 00:00:02]} g5
{[%clk 00:20:42]} {[%emt 00:00:02]} 14. Bg3 {[%clk 00:19:59]} Bxg3 {[%clk
00:20:46]} {[%emt 00:00:06]} 15. hxg3 {[%clk 00:20:07]} h5 {[%clk 00:20:18]}
{[%emt 00:00:40]} 16. f3 {[%clk 00:19:59]} {[%emt 00:00:19]} Qd6 {[%clk
00:20:11]} {[%emt 00:00:17]} 17. Kf2 {[%clk 00:19:33]} {[%emt 00:00:36]} h4
{[%clk 00:20:04]} {[%emt 00:00:16]} 18. gxh4 {[%clk 00:19:40]} {[%emt
00:00:03]} Qf4 {[%clk 00:19:30]} {[%emt 00:00:44]} 19. hxg5 {[%clk 00:18:43]}
{[%emt 00:01:07]} Qxg5 {[%clk 00:18:23]} {[%emt 00:01:18]} 20. Rh1 {[%clk
00:17:06]} {[%emt 00:01:46]} Re8 {[%clk 00:17:35]} {[%emt 00:00:58]} 21. Bd3
{[%clk 00:13:51]} {[%emt 00:03:26]} Qe3+ {[%clk 00:16:24]} {[%emt 00:01:21]} 22.
Kf1 {[%clk 00:13:29]} {[%emt 00:00:31]} Qf4 {[%clk 00:14:03]} {[%emt 00:02:32]}
23. Qd2 {[%clk 00:12:38]} {[%emt 00:01:00]} Qg3 {[%clk 00:13:02]} {[%emt
00:01:11]} 24. Qf2 {[%clk 00:12:32]} {[%emt 00:00:17]} Qf4 {[%clk 00:13:01]}
{[%emt 00:00:10]} 25. Qd2 {[%clk 00:11:55]} {[%emt 00:00:47]} Qg3 {[%clk
00:13:09]} 26. Na3 {[%clk 00:11:44]} {[%emt 00:00:23]} Rg8 {[%clk 00:11:34]}
{[%emt 00:01:46]} 27. c3 {[%clk 00:11:33]} {[%emt 00:00:21]} a6 {[%clk
00:11:22]} {[%emt 00:00:22]} 28. b4 {[%clk 00:11:33]} {[%emt 00:00:10]} Rg5
{[%clk 00:09:01]} {[%emt 00:02:31]} 29. b5 {[%clk 00:10:37]} {[%emt 00:01:06]}
axb5 {[%clk 00:08:51]} {[%emt 00:00:20]} 30. Nxb5 {[%clk 00:10:45]} Nh5 {[%clk
00:08:38]} {[%emt 00:00:23]} 31. Qe2 {[%clk 00:10:15]} {[%emt 00:00:40]} b6
{[%clk 00:08:29]} {[%emt 00:00:19]} 32. Rh3 {[%clk 00:07:35]} {[%emt 00:02:50]}
Qxh3 {[%clk 00:05:50]} {[%emt 00:02:49]} 33. gxh3 {[%clk 00:07:44]} Ng3+ {[%clk
00:05:59]} 34. Kf2 {[%clk 00:07:53]} Nxe2 {[%clk 00:06:08]} 35. Bxe2 {[%clk
00:08:02]} Ne7 {[%clk 00:05:13]} {[%emt 00:01:10]} 36. Rg1 {[%clk 00:08:04]}
{[%emt 00:00:07]} Rh5 {[%clk 00:05:07]} {[%emt 00:00:17]} 37. Kg3 {[%clk
00:07:55]} {[%emt 00:00:19]} c6 {[%clk 00:05:07]} {[%emt 00:00:11]} 38. Nd6
{[%clk 00:07:57]} {[%emt 00:00:07]} Rh7 {[%clk 00:04:41]} {[%emt 00:00:36]} 39.
Bd3 {[%clk 00:07:59]} {[%emt 00:00:09]} Ng6 {[%clk 00:03:58]} {[%emt 00:00:53]}
40. Nxf7 {[%clk 00:07:55]} {[%emt 00:00:13]} Rxf7 {[%clk 00:04:05]} {[%emt
00:00:03]} 41. Bxg6 {[%clk 00:08:04]} Rg7 {[%clk 00:04:14]} 42. Kf4 {[%clk
00:08:12]} {[%emt 00:00:05]} Kc7 {[%clk 00:04:20]} {[%emt 00:00:03]} 43. h4
{[%clk 00:08:15]} {[%emt 00:00:07]} Kd6 {[%clk 00:04:28]} {[%emt 00:00:02]} 44.
h5 {[%clk 00:08:25]} Ke7 {[%clk 00:04:29]} {[%emt 00:00:10]} 45. Re1+ {[%clk
00:08:34]} Kf6 {[%clk 00:04:36]} {[%emt 00:00:04]} 46. Re5 {[%clk 00:08:35]}
{[%emt 00:00:09]} Rg8 {[%clk 00:04:22]} {[%emt 00:00:25]} 47. Rf5+ {[%clk
00:08:40]} {[%emt 00:00:03]} Kg7 {[%clk 00:04:24]} {[%emt 00:00:08]} 48. Rf7+
{[%clk 00:08:41]} {[%emt 00:00:10]} Kh8 {[%clk 00:03:56]} {[%emt 00:00:06]} 49.
Rh7# 1-0

[Event "Velká cena Novohradska - A"]
[Site "Nové Hrady, Czech Republic"]
[Date "2024.10.12"]
[Round "3.5"]
[White "Čech, Nicolas"]
[Black "Borecký, Andrej"]
[Result "1-0"]
[TimeControl "2x20min+10s/tah"]
[WhiteFideId "23764228"]
[BlackFideId "23752670"]
[WhiteElo "1626"]
[BlackElo "1778"]

1. e4 {[%clk 00:20:17]} {[%emt 00:00:02]} c5 {[%clk 00:20:18]} {[%emt
00:00:02]} 2. Nf3 {[%clk 00:20:26]} {[%emt 00:00:02]} Nc6 {[%clk 00:20:27]}
{[%emt 00:00:02]} 3. c4 {[%clk 00:20:24]} {[%emt 00:00:11]} g6 {[%clk
00:19:56]} {[%emt 00:00:41]} 4. d4 {[%clk 00:20:25]} {[%emt 00:00:10]} cxd4
{[%clk 00:20:04]} {[%emt 00:00:01]} 5. Nxd4 {[%clk 00:20:33]} {[%emt 00:00:03]}
Bg7 {[%clk 00:20:12]} 6. Be3 {[%clk 00:20:40]} {[%emt 00:00:04]} d6 {[%clk
00:20:02]} {[%emt 00:00:19]} 7. Nc3 {[%clk 00:20:43]} {[%emt 00:00:08]} Nf6
{[%clk 00:20:09]} {[%emt 00:00:03]} 8. Be2 {[%clk 00:20:43]} {[%emt 00:00:10]}
O-O {[%clk 00:20:14]} {[%emt 00:00:05]} 9. O-O {[%clk 00:20:43]} {[%emt
00:00:09]} Bd7 {[%clk 00:20:09]} {[%emt 00:00:15]} 10. Rc1 {[%clk 00:20:06]}
{[%emt 00:00:48]} Rc8 {[%clk 00:20:15]} {[%emt 00:00:04]} 11. Nc2 {[%clk
00:16:47]} {[%emt 00:03:29]} a6 {[%clk 00:19:46]} {[%emt 00:00:39]} 12. f3
{[%clk 00:16:28]} {[%emt 00:00:29]} Na5 {[%clk 00:16:35]} {[%emt 00:03:22]} 13.
b3 {[%clk 00:15:05]} {[%emt 00:01:33]} Nc6 {[%clk 00:11:58]} {[%emt 00:04:46]}
14. Qd2 {[%clk 00:14:13]} {[%emt 00:01:02]} Qa5 {[%clk 00:10:23]} {[%emt
00:01:45]} 15. b4 {[%clk 00:11:37]} {[%emt 00:02:46]} Qd8 {[%clk 00:06:35]}
{[%emt 00:03:58]} 16. Nd5 {[%clk 00:10:56]} {[%emt 00:00:51]} Nxd5 {[%clk
00:05:22]} {[%emt 00:01:22]} 17. exd5 {[%clk 00:10:49]} {[%emt 00:00:18]} Ne5
{[%clk 00:04:55]} {[%emt 00:00:37]} 18. Nd4 {[%clk 00:10:23]} {[%emt 00:00:36]}
Re8 {[%clk 00:00:26]} {[%emt 00:04:39]} 19. Rfd1 {[%clk 00:09:38]} {[%emt
00:00:55]} h5 {[%clk 00:00:15]} {[%emt 00:00:21]} 20. Nb3 {[%clk 00:08:53]}
{[%emt 00:00:56]} 1-0